Workbook

Sheet Summary (hidden)
B2: Commercial Example | J2: Commercial Example
B3: Total Site Area (acres) | C3: 2 | J3: Total Site Area (acres) | K3: 7
C4: Existing I.C. | D4: Proposed I.C. | K4: existing | L4: proposed
B5: Impervious Cover (%) | C5: 0.3 | D5: 0.8 | J5: Impervious Cover (%) | K5: 0.5 | L5: 0.8
B6: Impervious Cover (acres) | C6: =$C$3*C5 -> 0.6 | D6: =$C$3*D5 -> 1.6 | J6: Impervious Cover (acres) | K6: 3.5 | L6: 5.6
B7: Land Appraisal ($/acre) | C7: 250000 | J7: Land Appraisal ($/acre) | K7: 250000
B8: ENR CCI AF (CCC) | D8: ='Proposed Commercial'!$H$45 -> 1.013949516 | J8: ENR CCI AF (CCC) | K8: 1.6998 | L8: 1
B9: I.C. AF (LCC) | D9: ='Proposed Commercial'!H71 -> 1 | J9: I.C. AF (LCC) | K9: n/a | L9: 1.4273
D10: Proposed Comm/MF/MU | K10: Current Payment Calculation | L10: Proposed Comm/MF/MU
B11: Land Value ($/acre) | D11: ='Proposed Commercial'!$D$66 -> 4760448 | J11: Land Value ($/acre) | K11: 120000 | L11: 200000
B12: Construction Cost Component | D12: ='Proposed Commercial'!$H$48 -> 159190.074 | J12: Construction Cost Component | K12: 133944.24 | L12: 203400
B13: Land Cost Component | D13: ='Proposed Commercial'!$H$74 -> 495086.592 | J13: Land Cost Component | K13: 42000 | L13: 99911
B14: Total | D14: ='Proposed Commercial'!$H$78 -> 654276.666 | J14: Total | K14: 175944.24 | L14: 303311
B16: MF/Mixed-Use Example | J16: MF/Mixed-Use Example
B17: Total Site Area (acres) | C17: 0.5 | J17: Total Site Area (acres) | K17: 0.3
C18: Existing I.C. | D18: Proposed I.C. | K18: existing | L18: proposed
B19: Impervious Cover (%) | C19: 0.5 | D19: 0.9 | J19: Impervious Cover (%) | K19: 0.8 | L19: 0.95
B20: Impervious Cover (acres) | C20: =$C$17*C19 -> 0.25 | D20: =$C$17*D19 -> 0.45 | J20: Impervious Cover (acres) | K20: 0.24 | L20: 0.285
B21: Land Appraisal ($/acre) | C21: 2000000 | J21: Land Appraisal ($/acre) | K21: 800000
B22: 2018 ENR CCI AF (CCC) | D22: =#REF! ->  | J22: 2018 ENR CCI AF (CCC) | K22: 1.6998 | L22: 1
B23: I.C. AF (LCC) | D23: =#REF! ->  | J23: I.C. AF (LCC) | K23: n/a | L23: 1.658675
D24: Proposed Comm/MF/MU | K24: Current Payment Calculation | L24: Proposed Comm/MF/MU
B25: Land Value ($/acre) | D25: =#REF! ->  | J25: Land Value ($/acre) | K25: 120000 | L25: 640000
B26: Construction Cost Component | D26: =#REF! ->  | J26: Construction Cost Component | K26: 4589.46 | L26: 5805
B27: Land Cost Component | D27: =#REF! ->  | J27: Land Cost Component | K27: 1800 | L27: 15923.28
B28: Total | D28: =#REF! ->  | J28: Total | K28: 6389.46 | L28: 21728.28
B30: Single-Family Example (large development) | J30: Single-Family Example (large development)
B31: Total Site Area (acres) | C31: 60 | J31: Total Site Area (acres) | K31: 60
C32: Existing I.C. | D32: Proposed I.C. | K32: existing | L32: proposed
B33: Impervious Cover (%) | C33: 0 | D33: 0.5 | J33: Impervious Cover (%) | K33: 0 | L33: 0.5
B34: Impervious Cover (acres) | C34: =$C$31*C33 -> 0 | D34: =$C$31*D33 -> 30 | J34: Impervious Cover (acres) | K34: =$C$31*K33 -> 0 | L34: =$C$31*L33 -> 30
B35: Land Appraisal ($/acre) | C35: 150000 | J35: Land Appraisal ($/acre) | K35: 150000
B36: 2018 ENR CCI AF (CCC) | D36: =#REF! ->  | J36: 2018 ENR CCI AF (CCC) | K36: =#REF! ->  | L36: =#REF! -> 
B37: I.C. AF (LCC) | D37: =#REF! ->  | J37: I.C. AF (LCC) | K37: n/a | L37: =#REF! -> 
D38: Proposed Residential | K38: Current Payment Calculation | L38: Proposed Residential
B39: Land Value ($/acre) | D39: =#REF! ->  | J39: Land Value ($/acre) | K39: =#REF! ->  | L39: =#REF! -> 
B40: Construction Cost Component | D40: =#REF! ->  | J40: Construction Cost Component | K40: =#REF! ->  | L40: =#REF! -> 
B41: Land Cost Component | D41: =#REF! ->  | J41: Land Cost Component | K41: =#REF! ->  | L41: =#REF! -> 
B42: Total | D42: =#REF! ->  | J42: Total | K42: =#REF! ->  | L42: =#REF! -> 
B44: Single-Family Example (small resubdivision) | J44: Single-Family Example (small resubdivision)
B45: Total Site Area (acres) | C45: 0.5 | J45: Total Site Area (acres) | K45: 0.5
C46: Existing I.C. | D46: Proposed I.C. | K46: existing | L46: proposed
B47: Impervious Cover (%) | C47: 0 | D47: 0.45 | J47: Impervious Cover (%) | K47: 0.15 | L47: 0.45
B48: Impervious Cover (acres) | C48: =$C$45*C47 -> 0 | D48: =$C$45*D47 -> 0.225 | J48: Impervious Cover (acres) | K48: 0.075 | L48: 0.225
B49: Land Appraisal ($/acre) | C49: 500000 | J49: Land Appraisal ($/acre) | K49: 500000
B50: 2018 ENR CCI AF (CCC) | D50: ='Proposed Residential'!H41 -> 1.013949516 | J50: 2018 ENR CCI AF (CCC) | K50: 1.6998 | L50: 1
B51: I.C. AF (LCC) | D51: ='Proposed Residential'!H68 -> 0.887425 | J51: I.C. AF (LCC) | K51: n/a | L51: 0.887425
D52: Proposed Residential | K52: Current Payment Calculation | L52: Proposed Residential
B53: Land Value ($/acre) | D53: ='Proposed Residential'!$D$62 -> 589970.5015 | J53: Land Value ($/acre) | K53: 40000 | L53: 400000
B54: Construction Cost Component | D54: ='Proposed Residential'!$H$44 -> 122855.1931 | J54: Construction Cost Component | K54: 8923.95 | L54: 15450
B55: Land Cost Component | D55: ='Proposed Residential'!$H$71 -> 88742.5 | J55: Land Cost Component | K55: 1000 | L55: 8874.25
B56: Total | D56: ='Proposed Residential'!$H$75 -> 211597.6931 | J56: Total | K56: 9923.95 | L56: 24324.25

Sheet CCC Rate Compare Graphs (hidden)
A1: ENR 2002 | D1: Cost per impervious acre | F1: Oct 2018/2002 number
A2: 6579 | B2: Impervious Acres | D2: ENR CCI AF (2018) | F2: =11183.28/6579 -> 1.699844961 | G2: =11183.28/6579 -> 1.699844961 | H2: =11170.28/11170.28 -> 1 | J2: =11170.28/11170.28 -> 1
B3: From | C3: To | D3: Commercial | E3: Residential | F3: Current Commercial (Adjusted) | G3: Current Residential (Adjusted) | H3: Proposed Commercial | I3: Proposed Residential | J3: Recommended Combined | L3: Unadjusted 2002 Commercial | M3: Unadjusted 2002 Residential | N3: Adjusted 2002 Commercial | O3: Adjusted 2002 Residential | P3: mid point max | R3: Proposed Commercial | S3: Proposed Residential
A4: A1 | B4: 0 | C4: 1 | D4: 60000 | E4: 35000 | F4: =D4*$F$2 -> 101990.6977 | G4: =E4*$F$2 -> 59494.57364 | H4: 129000 | I4: 103000 | J4: 129000 | L4: 82500 | M4: 84100 | N4: =L4*F$2 -> 140237.2093 | O4: =M4*G$2 -> 142956.9612 | P4: 95000 | R4: 129000 | S4: 103000
A5: A2 | B5: 1.01 | C5: 2 | D5: 18000 | E5: 15000 | F5: 30597.2093 | G5: 25497.67442 | H5: 70000 | I5: 70000 | J5: 70000 | L5: 23900 | M5: 34500 | N5: =L5*F$2 -> 40626.29457 | O5: =M5*G$2 -> 58644.65116 | P5: 64000 | R5: 70000 | S5: 70000
A6: A3 | B6: =C5+0.01 -> 2.01 | C6: 5 | D6: 8000 | E6: 10000 | F6: 13598.75969 | G6: 16998.44961 | H6: 44000 | I6: 44000 | J6: 44000 | L6: 14200 | M6: 22800 | N6: 24137.79845 | O6: 38756.46512 | P6: 40000 | R6: 44000 | S6: 44000
A7: A4 | B7: 5.01 | C7: 10 | D7: 6000 | E7: 7000 | F7: 10199.06977 | G7: 11898.91473 | H7: 29000 | I7: 29000 | J7: 29000 | L7: 8600 | M7: 15300 | N7: 14618.66667 | O7: 26007.62791 | P7: 26000 | R7: 29000 | S7: 29000
A8: A5 | B8: 10.01 | C8: 20 | D8: 5000 | E8: 5000 | F8: 8499.224806 | G8: 8499.224806 | H8: 20000 | I8: 20000 | J8: 20000 | L8: 5600 | M8: 10800 | N8: 9519.131783 | O8: 18358.32558 | P8: 18000 | R8: 20000 | S8: 20000
A9: A6 | B9: 20.01 | C9: 50 | D9: 4000 | E9: 3000 | F9: 6799.379845 | G9: 5099.534884 | H9: 12000 | I9: 12000 | J9: 12000 | L9: 4600 | M9: 5000 | N9: 7819.286822 | O9: 8499.224806 | P9: 11000 | R9: 12000 | S9: 12000
A10: A7 | B10: 50.01 | C10: 100 | D10: 2500 | E10: 2000 | F10: 4249.612403 | G10: 3399.689922 | H10: 8000 | I10: 8000 | J10: 8000 | L10: 2500 | M10: 3700 | N10: 4249.612403 | O10: 6289.426357 | P10: 8000 | R10: 8000 | S10: 8000
A11: A8 | B11: 100.01 | C11: > | D11: 2500 | E11: 1500 | F11: 4249.612403 | G11: 2549.767442 | H11: 4000 | I11: 4000 | J11: 4000 | L11: 2500 | M11: 2500 | N11: 4249.612403 | O11: 4249.612403 | P11: 4000 | R11: 4000 | S11: 4000
N17: ENR 2018 | P17: ENR 2002
M18: ENR AF = | N18: 11183.28 | O18: ÷ | P18: 6579 | Q18: = | R18: 1.6998
B19: Adjustment Factor for Relative Impervious Cover Percentage (accounts for lower or higher than City-wide average I.C.)
C21: I.C. Adjustment Factor = | E21: (1.5425 x | F21: TOTAL Proposed I.C.) | H21: + 0.1933 = | I21: 0.887425
G22: Impervious Cover (Total Proposed)
F23: 1.5425 | G23: 0.25 | H23: 0.1933 | I23: =($F$23*G23)+$H$23 -> 0.578925
G24: 0.3 | I24: 0.65605
G25: 0.4 | I25: 0.8103
G26: 0.45 | I26: =($F$23*G26)+$H$23 -> 0.887425
G27: 0.55 | I27: 1.041675
G28: 0.65 | I28: 1.195925
G29: 0.7 | I29: 1.27305
G30: 0.8 | I30: 1.4273
G31: 0.9 | I31: 1.58155
G32: 1 | I32: 1.7358
E36: 2018-10-01 | F36: 2002-10-01
E37: 11183.28 | F37: 6579 | G37: =E37/F37 -> 1.699844961
B38: From | C38: To | D38: Commercial | E38: Residential | F38: Current Commercial (Adjusted) | G38: Current Residential (Adjusted) | H38: Proposed Commercial | I38: Proposed Residential
A39: A1 | B39: 0 | C39: 1 | D39: 60000 | E39: 35000 | F39: =D39*$G$37 -> 101990.6977 | G39: =E39*$G$37 -> 59494.57364 | H39: 129000 | I39: 103000
A40: A2 | B40: 1.01 | C40: 2 | D40: 18000 | E40: 15000 | F40: =D40*$G$37 -> 30597.2093 | G40: =E40*$G$37 -> 25497.67442 | H40: 70000 | I40: 70000
A41: A3 | B41: =C40+0.01 -> 2.01 | C41: 5 | D41: 8000 | E41: 10000 | F41: 13598.75969 | G41: 16998.44961 | H41: 44000 | I41: 44000
A42: A4 | B42: 5.01 | C42: 10 | D42: 6000 | E42: 7000 | F42: 10199.06977 | G42: 11898.91473 | H42: 29000 | I42: 29000
A43: A5 | B43: 10.01 | C43: 20 | D43: 5000 | E43: 5000 | F43: 8499.224806 | G43: 8499.224806 | H43: 20000 | I43: 20000
A44: A6 | B44: 20.01 | C44: 50 | D44: 4000 | E44: 3000 | F44: 6799.379845 | G44: 5099.534884 | H44: 12000 | I44: 12000
A45: A7 | B45: 50.01 | C45: 100 | D45: 2500 | E45: 2000 | F45: 4249.612403 | G45: 3399.689922 | H45: 8000 | I45: 8000
A46: A8 | B46: 100.01 | C46: > | D46: 2500 | E46: 1500 | F46: 4249.612403 | G46: 2549.767442 | H46: 4000 | I46: 4000

Sheet Instructions (hidden)
A1: DISCLAIMER: This calculation spreadsheet is valid until September 30, 2022 and is to be used only for the purpose of estimating participation payments. The final payment calculation will be completed by Watershed Protection Department staff. Please visit the RSMP website for more information. Please direct questions by email to RSMP@austintexas.gov.
A5: PROJECT INFORMATION
A6: Provide project name, address, watershed, case number, Map grid #, zoning, drainage reviewer, case manager, TCAD PID, and TCAD area. These fields are required when submitting application but may not yet be known at the time of the feasibility meeting. RSMP number will be provided by WPD staff.
A9: Land use, for the purposes of the RSMP payment calculator, is defined as either single-family residential or commercial/multi-family/mixed-use. Zoning designations can be found in the Land Development Code.
A11: The TCAD 10-digit Parcel ID number and watershed can both be found using the Property Profile tool (link available on the RSMP website at www.austintexas.gov/rsmp)
A13: Total site area for new development is the gross site area. Total site area for redevelopment is the limits of construction. This is input in the land area section and automatically used if LOC area is greater than the total site area. Existing impervious cover is defined by permitted impervious cover Proposed impervious cover for site plan applications should be based on the actual proposed impervious cover. For subdivisions, the proposed impervious cover should be the maximum allowable impervious cover based on zoning and watershed requirements.
A21: CONSTRUCTION COST COMPONENT
A22: The Construction Cost Component is automatically calculated based on the total site area and the existing and proposed impervious cover values provided.
A24: The construction cost component is multiplied by an adjustment factor which is updated on an annual basis to account for changes in construction costs. The adjustment factor is based on the ENR Construction Cost Index (CCI) and is updated each October.
A28: LAND COST COMPONENT
A29: The Land Cost Component is based on the appraised land value and then multiplied by 80%. This replaces the previously static capped $/acre values for different land use types. The Land Cost Component is also multiplied by an adjustment factor which accounts for the relative impervious cover of a site compared with the weighted average in the City. This impervious cover adjustment factor is the same as the adjustment factor for the drainage utility fee.
A34: Deductible areas include floodplain/drainage easements, water quality easements, conservation easements, and other non-developable areas as defined by City ordinances. If an area is claimed as deductible for RSMP payment calculation purposes, documentation must be provided with the participation application that shows easement dedication or other supporting documentation of undevelopable area.
A40: CREDIT FOR CONSTRUCTION OF OFF-SITE DRAINAGE IMPROVEMENTS
A41: For sites which are participating via construction of approved off-site drainage improvements, please provide the total construction cost estimate for the improvements. This amount should match the formal cost estimate provided as part of the application and as part of Exhibit A of the formal RSMP agreement. This amount will be credited towards the calculated participation payment amount. If the cost estimate is less than the payment amount, the difference will be paid by the applicant to the City. If the cost estimate is more than the payment amount, no additional payment will be necessary and no refund will be provided.
A48: OVERALL COST CAP
A49: An overall cap will be applied to the calculated payment amount per acre based on the estimated costs for an underground detention vault such as would be utilized on a small urban site with very high (95-100%) impervious cover (typically a tall building with parking structure). This cap ($440,000/acre initially and then indexed annually based on the Engineering News Record Construction Cost Index) is meant to prevent extremely high land appraisal values from skewing the calculated payment amount of a site so that it is out of proportion with on-site detention. The general payment calculation has a construction cost component that is based on the cost of on-site detention with the assumption that the detention would be an above-ground pond. For urban sites, where the land cost could impact the overall payment amount, the typical on-site detention solution is more likely to be an underground vault given the limited site area and high impervious cover.

Sheet RSMP Payment Calculator
A1: DISCLAIMER: This calculation spreadsheet is valid only for estimates until September 30, 2023. Please visit the RSMP website for more information. Please direct questions by email to RSMP@austintexas.gov. | I1: DISCLAIMER: This calculation spreadsheet is valid until September 30, 2023, and is to be used only for the purpose of estimating participation payments. The final payment calculation will be completed by Watershed Protection Department staff. Please visit the RSMP website for more information. Please direct questions by email to RSMP@austintexas.gov.
G4: Watershed:
G5: Mapsco Grid #: | I5: INSTRUCTIONS for completing the payment calculation estimate tool.
G6: TCAD PID_10: | I6: Provide project name, address, watershed, case number, Map grid #, zoning, drainage reviewer, case manager, TCAD PID, and TCAD area. These fields are required when submitting application but may not yet be known at the time of the feasibility meeting. RSMP number will be provided by WPD staff.
G7: TCAD Area:
G8: Zoning:
G9: SH Certified:
G10: Type of Participation:
A11: RSMP PARTICIPATION PAYMENT CALCULATOR | G11: Drainage Reviewer: | I11: The TCAD 10-digit Parcel ID number and watershed can both be found using the Property Profile tool (link available on the RSMP website at www.austintexas.gov/rsmp)
C12: Project Name/ Address: | G12: Case Manager:
C13: Case Number: | G13: RSMP Number:
C14: Land Use: | G14: NOTE: Only edit the shaded cells -- all others are calculated automatically | I14: Land use, for the purposes of the RSMP payment calculator, is defined as either single-family residential or commercial/multi-family/mixed-use. Zoning designations can be found in the Land Development Code. Use the drop-down menu to select the appropriate designation. If a development is not single family residential, "commercial/ multi-family residential/ mixed-use" should be chosen - this applies to churches, ROW, industrial, etc. Note that this drop-down must be selected to populate the calculator.
A17: Input Site and Impervious Cover Area in Acres
B19: 1 acre = 43,560 SF | F19: Area (acres) | H19: Impervious %
E20: Total Site Area = | I20: Total site area for new development is the gross site area. Total site area for redevelopment is the limits of construction. This is input in the land area section and automatically used if LOC area is greater than the total site area. Existing impervious cover is defined by permitted impervious cover Proposed impervious cover for site plan applications should be based on the actual proposed impervious cover. For subdivisions, the proposed impervious cover should be the maximum allowable impervious cover based on zoning and watershed requirements.
E22: Existing Impervious Cover Area = | H22: =F22/$F$20 -> 
E24: Proposed Impervious Cover Area = | H24: =F24/$F$20 -> 
E26: Increase in Impervious Cover Area = | F26: =F24-F22 -> 0 | H26: =F26/$F$20 -> 
A29: Construction Cost Component (CCC) | E29: Values in this section are calculated automatically based on inputs of site area, impervious cover, and land use | I29: CONSTRUCTION COST COMPONENT
B30: Impervious Acres
B31: From | C31: To | D31: Cost per impervious acre | E31: X | F31: Impervious Acres | G31: = | H31: Sub-Total Cost | I31: The Construction Cost Component is automatically calculated based on the total site area and the existing and proposed impervious cover values provided.
A32: A1 | B32: 0 | C32: 1 | D32: =IF($D$14='Proposed Residential'!$I$12,'Proposed Commercial'!D33,IF($D$14='Proposed Residential'!$I$11,'Proposed Residential'!D29,"Input Error")) -> Input Error | F32: =IF($F$26>1,1,$F$26) -> 0 | G32: ac. | H32: =D32*F32 -> 
A34: A2 | B34: 1.01 | C34: 2 | D34: =IF($D$14='Proposed Residential'!$I$12,'Proposed Commercial'!D34,IF($D$14='Proposed Residential'!$I$11,'Proposed Residential'!D30,"Input Error")) -> Input Error | F34: =IF($F$26>C32,IF(($F$26-C34)>0,C34-C32,IF($F$26>C32,($F$26-C32),0)),0) -> 0 | G34: ac. | H34: =D34*F34 -> 
A36: A3 | B36: =C34+0.01 -> 2.01 | C36: 5 | D36: =IF($D$14='Proposed Residential'!$I$12,'Proposed Commercial'!D35,IF($D$14='Proposed Residential'!$I$11,'Proposed Residential'!D31,"Input Error")) -> Input Error | F36: =IF($F$26>C34,IF(($F$26-C36)>0,C36-C34,IF($F$26>C34,($F$26-C34),0)),0) -> 0 | G36: ac. | H36: =D36*F36 -> 
A38: A4 | B38: =C36+0.01 -> 5.01 | C38: 10 | D38: =IF($D$14='Proposed Residential'!$I$12,'Proposed Commercial'!D36,IF($D$14='Proposed Residential'!$I$11,'Proposed Residential'!D32,"Input Error")) -> Input Error | F38: =IF($F$26>C36,IF(($F$26-C38)>0,C38-C36,IF($F$26>C36,($F$26-C36),0)),0) -> 0 | G38: ac. | H38: =D38*F38 -> 
A40: A5 | B40: =C38+0.01 -> 10.01 | C40: 20 | D40: =IF($D$14='Proposed Residential'!$I$12,'Proposed Commercial'!D37,IF($D$14='Proposed Residential'!$I$11,'Proposed Residential'!D33,"Input Error")) -> Input Error | F40: =IF($F$26>C38,IF(($F$26-C40)>0,C40-C38,IF($F$26>C38,($F$26-C38),0)),0) -> 0 | G40: ac. | H40: =D40*F40 -> 
A42: A6 | B42: =C40+0.01 -> 20.01 | C42: 50 | D42: =IF($D$14='Proposed Residential'!$I$12,'Proposed Commercial'!D38,IF($D$14='Proposed Residential'!$I$11,'Proposed Residential'!D34,"Input Error")) -> Input Error | F42: =IF($F$26>C40,IF(($F$26-C42)>0,C42-C40,IF($F$26>C40,($F$26-C40),0)),0) -> 0 | G42: ac. | H42: =D42*F42 -> 
A44: A7 | B44: =C42+0.01 -> 50.01 | C44: 100 | D44: =IF($D$14='Proposed Residential'!$I$12,'Proposed Commercial'!D39,IF($D$14='Proposed Residential'!$I$11,'Proposed Residential'!D35,"Input Error")) -> Input Error | F44: =IF($F$26>C42,IF(($F$26-C44)>0,C44-C42,IF($F$26>C42,($F$26-C42),0)),0) -> 0 | G44: ac. | H44: =D44*F44 -> 
A46: A8 | B46: =C44+0.01 -> 100.01 | C46: > | D46: =IF($D$14='Proposed Residential'!$I$12,'Proposed Commercial'!D40,IF($D$14='Proposed Residential'!$I$11,'Proposed Residential'!D36,"Input Error")) -> Input Error | F46: =IF($F$26>C44,IF(($F$26-1000000)>0,1000000-C44,IF($F$26>C44,($F$26-C44),0)),0) -> 0 | G46: ac. | H46: =D46*F46 -> 
D48: SUB TOTAL | F48: =SUM(F32:F46) -> 0 | G48: ac. | H48: =SUM(H32:H46) -> 
A50: Adjustment Factor | I50: The construction cost component is multiplied by an adjustment factor which is updated on an annual basis to account for changes in construction costs. The adjustment factor is based on the ENR Construction Cost Index (CCI) and is updated each October.
D51: ENR 2022 | F51: ENR 2018
C52: ENR AF = | D52: 13173.43 | E52: ÷ | F52: 11170.28 | G52: = | H52: =D52/F52 -> 1.17932854
A54: Note: this adjustment factor accounts for annual changes in construction costs based on ENR CCI from October each year. | F54: CCC Sub Total ($) | G54: ENR AF | H54: Adjusted CCC Total
F55: =H48 ->  | G55: ="x "&ROUND(D52/F52,4)&" = " -> x 1.1793 = | H55: =F55*H52 -> 
A57: Land Cost Component (LCC) | I57: LAND COST COMPONENT
A58: Part A - Land Cost per Acre
E59: TCAD Parcel ID (10-digit)* = | G59: Value = | I59: The Land Cost Component is based on the appraised land value and then multiplied by 80%. This replaces the previously static capped $/acre values for different land use types. The Land Cost Component is also multiplied by an adjustment factor which accounts for the relative impervious cover of a site compared with the weighted average in the City. This impervious cover adjustment factor is the same as the adjustment factor for the drainage utility fee.
E61: Appraisal District: | G61: Tax Year:
A62: User Inputs - if different from appraisal district land value and area (provide certified appraisal documentation)
D63: Certified Appraisal Land Valuation ($) | F63: Certified Appraisal Land Area (Acre) | H63: Certified Appraisal Value per Acre
D64: =H59 -> 0 | E64: ÷ | F64: =F20 -> 0 | G64: = | H64: =D64/F64 -> 
I65: The TCAD 10-digit Parcel ID number and watershed can both be found using the Property Profile tool (link available on the RSMP website at www.austintexas.gov/rsmp)
A67: Part B - Land Cost Area | F67: =IF(F64=F20,"equal","not the same") -> equal | G67: User Input - if greater than total site area
E68: Limits of Construction Area (acres) =
I69: Deductible areas include floodplain/drainage easements, water quality easements, conservation easements, and other non-developable areas as defined by City ordinances. If an area is claimed as deductible for RSMP payment calculation purposes, documentation must be provided with the participation application that shows easement dedication or other supporting documentation of undevelopable area.
A70: Deductible Areas (must have documentation of easements to deduct)
E71: SF | F71: Acres
D72: Floodplain/Drainage Easement Area: | F72: =E72/43560 -> 0
D73: Water Quality Easement Area: | F73: =E73/43560 -> 0
D74: Conservation Easement Area: | F74: =E74/43560 -> 0
E76: Total Deductible Land Area (acres) = | F76: =SUM(F72:F74) -> 0
D78: Value per Acre | F78: Land Cost Area*** | H78: Land Cost Component (LCC)
C79: 80% x | D79: =H64 ->  | E79: x 0.05 x | F79: =IF(F68>F20,F68,F20)-F76 -> 0 | G79: = | H79: =0.8*D79*0.05*F79 -> 
A81: Adjustment Factor for Relative Impervious Cover Percentage (accounts for lower or higher than City-wide average I.C.)
I82: OVERALL COST CAP
D83: I.C. Adjustment Factor = | E83: (1.5425 x | F83: =H24 ->  | G83: ) + 0.1933 = | H83: =IF(((1.5425*F83)+0.1933)<1,(1.5425*F83)+0.1933,1) ->  | I83: An overall cap will be applied to the calculated payment amount per acre based on the estimated costs for an underground detention vault such as would be utilized on a small urban site with very high (95-100%) impervious cover (typically a tall building with parking structure). This cap ($440,000/acre initially and then indexed annually based on the Engineering News Record Construction Cost Index) is meant to prevent extremely high land appraisal values from skewing the calculated payment amount of a site so that it is out of proportion with on-site detention. The general payment calculation has a construction cost component that is based on the cost of on-site detention with the assumption that the detention would be an above-ground pond. For urban sites, where the land cost could impact the overall payment amount, the typical on-site detention solution is more likely to be an underground vault given the limited site area and high impervious cover.
F85: LCC Sub Total ($) | G85: I.C. AF | H85: Adjusted LCC Total
F86: =H79 ->  | G86: ="x "&ROUND(H83,4)&" = " ->  | H86: =F86*H83 -> 
A88: Total RSMP Participation Cost
D89: Adjusted CCC | F89: LCC | H89: Total
D90: =H55 ->  | E90: + | F90: =H86 ->  | G90: = | H90: =IF(D95>D96,$D$93,$D$92) -> 
B92: Calculated | D92: =D90+F90 -> 
B93: Capped | D93: =D96*F20 -> 0
D94: Check for extreme $/acre RSMP cost and use cap as necessary
D95: =(D90+F90)/F20 ->  | E95: per acre
D96: =440000*H52 -> 518904.5575 | E96: per acre
D98: =IF(D95>D96,"USE CAPPED RATE", "USE CALCULATED RATE") -> 
A100: S.M.A.R.T. Housing Payment Adjustment | I100: Affordable Housing Discount Structure
A101: Affordability Term (in years, must be at least 40): | F101: Smart Housing Adjustment**: | H101: =IF(H9="yes",IF(E101>=40,IF(AND(E103>10%,E103<50%),E103,IF(E103<10%,"n/a",IF(OR(E103=50%,E103>50%),E103,"n/a"))),"n/a"),"not SH") -> not SH | I101: Only applicable for SH certified developments which meet additional requirements as adopted in the FY22 Budget. Minimum term of affordability is 40 years. Minimum percentage of units is 10%. **The "SH Certified" cell at the top of the form must have a value of "yes" for this portion of the spreadsheet to calculate.
D103: Percentage of Affordable Units: | G103: Final Total: | H103: =IF(H101="n/a",H90,(H90*(1-H101))) -> 
A105: Public Improvements Provided in Lieu of On-site Detention | I105: CREDIT FOR CONSTRUCTION OF OFF-SITE DRAINAGE IMPROVEMENTS
A106: Short description: | I106: For sites which are participating via construction of approved off-site drainage improvements, please provide a brief description of the RSMP improvements and the total construction cost estimate for the improvements. This amount should match the formal cost estimate provided as part of the application and as part of Exhibit A of the formal RSMP agreement. This amount will be credited towards the calculated participation payment amount. If the cost estimate is less than the payment amount, the difference will be paid by the applicant to the City. If the cost estimate is more than the payment amount, no additional payment will be necessary and no refund will be provided. ^the "short description" must be filled out and the participation type must be "improvements" for this calculation to populate. Participation by payment does not need this section.
A107: Refer to construction documents and cost estimate attached to the RSMP agreement.
A109: Adjustment of Participation Payment based on Engineer's Cost Estimate of Improvements
D110: Total | F110: Construction Cost Estimate^ | H110: Remaining Payment
D111: =IF(H101>0,H103,H90) ->  | E111: - | G111: = | H111: =IF(H10="improvements",IF(D106="","refer to total",IF(D111-F111>0,D111-F111,"no remaining cost")),"this section not applicable - refer to total") -> this section not applicable - refer to total

Sheet RSMP Payment Calculator (2) (hidden)
A1: DISCLAIMER: This calculation spreadsheet is valid only for estimates until September 30, 2021. Please visit the RSMP website for more information. Please direct questions by email to RSMP@austintexas.gov.
G4: Watershed:
G5: Mapsco Grid #:
G6: TCAD PID_10:
G7: TCAD Area:
G8: Zoning:
A9: RSMP PARTICIPATION PAYMENT CALCULATOR | G9: Drainage Reviewer:
C10: Project Name/ Address: | G10: Case Manager:
C11: Case Number: | G11: RSMP Number:
C12: Land Use: | D12: Commercial/ Multi-family Residential/ Mixed-Use | G12: NOTE: Only edit the shaded cells -- all others are calculated automatically
A15: Input Site and Impervious Cover Area in Acres
A16: NOTE: The total site and impervious cover areas entered must include any additional area beyond the property boundary that is within the limits of construction for the project.
B19: 1 acre = 43,560 SF | F19: Area (acres) | H19: Impervious %
E20: Total Site Area = | F20: 0.45
E22: Existing Impervious Cover Area = | F22: 0 | H22: =F22/$F$20 -> 0
E24: Proposed Impervious Cover Area = | H24: =F24/$F$20 -> 0
E26: Increase in Impervious Cover Area = | F26: =F24-F22 -> 0 | H26: =F26/$F$20 -> 0
A28: Construction Cost Component (CCC) | E28: Values in this section are calculated automatically based on inputs of site area, impervious cover, and land use
B29: Impervious Acres
B30: From | C30: To | D30: Cost per impervious acre | E30: X | F30: Impervious Acres | G30: = | H30: Sub-Total Cost
A31: A1 | B31: 0 | C31: 1 | D31: =IF($D$12='Proposed Residential'!$I$12,'Proposed Commercial'!D33,IF($D$12='Proposed Residential'!$I$11,'Proposed Residential'!D29,"Input Error")) -> 129000 | F31: =IF($F$26>1,1,$F$26) -> 0 | G31: ac. | H31: =D31*F31 -> 0
A33: A2 | B33: 1.01 | C33: 2 | D33: =IF($D$12='Proposed Residential'!$I$12,'Proposed Commercial'!D34,IF($D$12='Proposed Residential'!$I$11,'Proposed Residential'!D30,"Input Error")) -> 70000 | F33: =IF($F$26>C31,IF(($F$26-C33)>0,C33-C31,IF($F$26>C31,($F$26-C31),0)),0) -> 0 | G33: ac. | H33: =D33*F33 -> 0
A35: A3 | B35: =C33+0.01 -> 2.01 | C35: 5 | D35: =IF($D$12='Proposed Residential'!$I$12,'Proposed Commercial'!D35,IF($D$12='Proposed Residential'!$I$11,'Proposed Residential'!D31,"Input Error")) -> 44000 | F35: =IF($F$26>C33,IF(($F$26-C35)>0,C35-C33,IF($F$26>C33,($F$26-C33),0)),0) -> 0 | G35: ac. | H35: =D35*F35 -> 0
A37: A4 | B37: =C35+0.01 -> 5.01 | C37: 10 | D37: =IF($D$12='Proposed Residential'!$I$12,'Proposed Commercial'!D36,IF($D$12='Proposed Residential'!$I$11,'Proposed Residential'!D32,"Input Error")) -> 29000 | F37: =IF($F$26>C35,IF(($F$26-C37)>0,C37-C35,IF($F$26>C35,($F$26-C35),0)),0) -> 0 | G37: ac. | H37: =D37*F37 -> 0
A39: A5 | B39: =C37+0.01 -> 10.01 | C39: 20 | D39: =IF($D$12='Proposed Residential'!$I$12,'Proposed Commercial'!D37,IF($D$12='Proposed Residential'!$I$11,'Proposed Residential'!D33,"Input Error")) -> 20000 | F39: =IF($F$26>C37,IF(($F$26-C39)>0,C39-C37,IF($F$26>C37,($F$26-C37),0)),0) -> 0 | G39: ac. | H39: =D39*F39 -> 0
A41: A6 | B41: =C39+0.01 -> 20.01 | C41: 50 | D41: =IF($D$12='Proposed Residential'!$I$12,'Proposed Commercial'!D38,IF($D$12='Proposed Residential'!$I$11,'Proposed Residential'!D34,"Input Error")) -> 12000 | F41: =IF($F$26>C39,IF(($F$26-C41)>0,C41-C39,IF($F$26>C39,($F$26-C39),0)),0) -> 0 | G41: ac. | H41: =D41*F41 -> 0
A43: A7 | B43: =C41+0.01 -> 50.01 | C43: 100 | D43: =IF($D$12='Proposed Residential'!$I$12,'Proposed Commercial'!D39,IF($D$12='Proposed Residential'!$I$11,'Proposed Residential'!D35,"Input Error")) -> 8000 | F43: =IF($F$26>C41,IF(($F$26-C43)>0,C43-C41,IF($F$26>C41,($F$26-C41),0)),0) -> 0 | G43: ac. | H43: =D43*F43 -> 0
A45: A8 | B45: =C43+0.01 -> 100.01 | C45: > | D45: =IF($D$12='Proposed Residential'!$I$12,'Proposed Commercial'!D40,IF($D$12='Proposed Residential'!$I$11,'Proposed Residential'!D36,"Input Error")) -> 4000 | F45: =IF($F$26>C43,IF(($F$26-1000000)>0,1000000-C43,IF($F$26>C43,($F$26-C43),0)),0) -> 0 | G45: ac. | H45: =D45*F45 -> 0
D47: SUB TOTAL | F47: =SUM(F31:F45) -> 0 | G47: ac. | H47: =SUM(H31:H45) -> 0
A49: Adjustment Factor
D50: ENR 2020 | F50: ENR 2018
C51: ENR AF = | D51: 11326.1 | E51: ÷ | F51: 11170.28 | G51: = | H51: =D51/F51 -> 1.013949516
A53: Note: this adjustment factor accounts for annual changes in construction costs based on ENR CCI from October each year. | F53: CCC Sub Total ($) | G53: ENR AF | H53: Adjusted CCC Total
F54: =H47 -> 0 | G54: ="x "&ROUND(D51/F51,4)&" = " -> x 1.0139 = | H54: =F54*H51 -> 0
A56: Land Cost Component (LCC)
A57: Part A - Land Cost per Acre
E58: TCAD Parcel ID (10-digit)* = | G58: Value =
E60: Appraisal District: | G60: Tax Year: | H60: =YEAR(TODAY()) -> 2022
A61: User Inputs - if different from appraisal district land value and area (provide certified appraisal documentation)
D62: Certified Appraisal Land Valuation ($) | F62: Certified Appraisal Land Area (Acre) | H62: Certified Appraisal Value per Acre
D63: =H58 -> 0 | E63: ÷ | F63: =F20 -> 0.45 | G63: = | H63: =D63/F63 -> 0
A66: Part B - Land Cost Area | G66: User Input - if greater than total site area
E67: Limits of Construction Area (acres) =
A69: Deductible Areas (must have documentation of easements to deduct)
E70: SF | F70: Acres
D71: Floodplain/Drainage Easement Area: | F71: =E71/43560 -> 0
D72: Water Quality Easement Area:
D73: Conservation Easement Area:
E75: Total Deductible Land Area (acres) = | F75: =SUM(F71:F73) -> 0
D77: Value per Acre | F77: Land Cost Area*** | H77: Land Cost Component (LCC)
C78: 80% x | D78: =H63 -> 0 | E78: x 0.05 x | F78: =IF(F67>F20,F67,F20)-F75 -> 0.45 | G78: = | H78: =0.8*D78*0.05*F78 -> 0
A81: Adjustment Factor for Relative Impervious Cover Percentage (accounts for lower or higher than City-wide average I.C.)
D83: I.C. Adjustment Factor = | E83: (1.5425 x | F83: =H24 -> 0 | G83: ) + 0.1933 = | H83: =IF(((1.5425*F83)+0.1933)<1,(1.5425*F83)+0.1933,1) -> 0.1933
F85: LCC Sub Total ($) | G85: I.C. AF | H85: Adjusted LCC Total
F86: =H78 -> 0 | G86: ="x "&ROUND(H83,4)&" = " -> x 0.1933 = | H86: =F86*H83 -> 0
A88: Total RSMP Participation Cost
D89: Adjusted CCC | F89: LCC | H89: Total
D90: =H54 -> 0 | E90: + | F90: =H86 -> 0 | G90: = | H90: =IF(D95>D96,$D$93,$D$92) -> 0
B92: Calculated | D92: =D90+F90 -> 0
B93: Capped | D93: =D96*F20 -> 198000 | I93: =D98 -> USE CALCULATED RATE
D94: Check for extreme $/acre RSMP cost and use cap as necessary
D95: =(D90+F90)/F20 -> 0 | E95: per acre
D96: 440000 | E96: per acre
D98: =IF(D95>D96,"USE CAPPED RATE", "USE CALCULATED RATE") -> USE CALCULATED RATE
A100: Public Improvements Provided in Lieu of On-site Detention
A101: Short description:
A102: Refer to construction documents and cost estimate attached to the RSMP agreement.
A104: Adjustment of Participation Payment based on Engineer's Cost Estimate of Improvements
D105: Total | F105: Construction Cost Estimate | H105: Remaining Payment
D106: =H90 -> 0 | E106: - | G106: = | H106: =D106-F106 -> 0

Sheet Proposed Commercial (hidden)
A1: DISCLAIMER: This calculation spreadsheet is valid until September 30, 2020 and is to be used only for the purpose of previewing the proposed changes to the payment structure for FY21. Please visit the RSMP website for more information. Please direct questions by email to RSMP@austintexas.gov.
L5: Watershed:
L6: Mapsco Grid #:
L7: TCAD PID_10:
L8: TCAD Area:
L9: Zoning:
L10: Drainage Reviewer:
L11: Case Manager:
A13: RSMP PARTICIPATION PAYMENT CALCULATOR (proposed)
C15: Project Name: | D15: Address/Case Name
C16: Case Number: | D16: RSMP Number, Case Number
A18: Input Site and Impervious Cover Area in Acres
A19: NOTE: The total and impervious cover areas entered must include any additional area beyond
A20: the property boundary that is within the limits of construction for the project.
F21: Area (acres) | H21: Impervious % | J21: Area (SF)
E22: Total Site Area = | F22: 2.5 | J22: =F22*43560 -> 108900
E24: Existing Impervious Cover Area = | F24: 1 | H24: =F24/F22 -> 0.4 | J24: =F24*43560 -> 43560
E26: Proposed Impervious Cover Area = | F26: 2.4 | H26: =F26/F22 -> 0.96 | J26: =F26*43560 -> 104544
E28: Increase in Impervious Cover Area = | F28: =F26-F24 -> 1.4 | H28: =F28/F22 -> 0.56 | J28: =F28*43560 -> 60984
A30: Construction Cost Component (CCC)
B31: Impervious Acres
B32: From | C32: To | D32: Cost per impervious acre | F32: Impervious Acres | H32: Sub-Total Cost
A33: A1 | B33: 0 | C33: 1 | D33: ='CCC Rate Compare Graphs'!R4 -> 129000 | F33: =IF($F$28>1,1,$F$28) -> 1 | G33: ac. | H33: =D33*F33 -> 129000
A34: A2 | B34: 1.01 | C34: 2 | D34: ='CCC Rate Compare Graphs'!R5 -> 70000 | F34: =IF($F$28>C33,IF(($F$28-C34)>0,C34-C33,IF($F$28>C33,($F$28-C33),0)),0) -> 0.4 | G34: ac. | H34: 28000
A35: A3 | B35: =C34+0.01 -> 2.01 | C35: 5 | D35: ='CCC Rate Compare Graphs'!R6 -> 44000 | F35: 0 | G35: ac. | H35: 0
A36: A4 | B36: 5.01 | C36: 10 | D36: ='CCC Rate Compare Graphs'!R7 -> 29000 | F36: 0 | G36: ac. | H36: 0
A37: A5 | B37: 10.01 | C37: 20 | D37: ='CCC Rate Compare Graphs'!R8 -> 20000 | F37: 0 | G37: ac. | H37: 0
A38: A6 | B38: 20.01 | C38: 50 | D38: ='CCC Rate Compare Graphs'!R9 -> 12000 | F38: 0 | G38: ac. | H38: 0
A39: A7 | B39: 50.01 | C39: 100 | D39: ='CCC Rate Compare Graphs'!R10 -> 8000 | F39: 0 | G39: ac. | H39: 0 | O39: ENR 2018 | Q39: ENR 2002
A40: A8 | B40: 100.01 | C40: > | D40: ='CCC Rate Compare Graphs'!R11 -> 4000 | F40: =IF($F$28>C39,IF(($F$28-1000000)>0,1000000-C39,IF($F$28>C39,($F$28-C39),0)),0) -> 0 | G40: ac. | H40: 0 | N40: ENR AF = | O40: 11183.28 | P40: ÷ | Q40: 6579 | R40: = | S40: 1.6998
D41: SUB TOTAL | F41: =SUM(F33:F40) -> 1.4 | G41: ac. | H41: =SUM(H33:H40) -> 157000
A43: Adjustment Factor (accounts for changes in construction costs)
D44: ENR 2019 | F44: ENR 2018 | J44: September 18 CCI value
C45: ENR AF = | D45: 11326.1 | E45: ÷ | F45: 11170.28 | G45: = | H45: =D45/F45 -> 1.013949516
F47: CCC Sub Total ($) | G47: ENR AF | H47: Adjusted CCC Total
F48: =H41 -> 157000 | G48: ="x "&ROUND(D45/F45,4)&" = " -> x 1.0139 = | H48: =F48*H45 -> 159190.074
A50: Land Cost Component (LCC)
A51: Part A - Land Cost per Acre
A52: Type values into boxes that indicate required user input.
E54: TCAD Parcel ID (10-digit) = | G54: Value = | H54: =5950560+2975280+2975280 -> 11901120 | K54: Tax Year
D56: Certified Appraisal Land Valuation ($)* | F56: Certified Appraisal Land Area (Acre) | H56: Certified Appraisal Value per Acre
D57: =H54 -> 11901120 | E57: ÷ | F57: =F22 -> 2.5 | G57: = | H57: =D57/F57 -> 4760448 | M57: Area
D58: User Input | F58: User Input | M58: SF | N58: Acres
A59: * Certified appraisal value if available, otherwise use the current appraisal district land values. | L59: Floodplain/Drainage Easement Area: | N59: =M59/43560 -> 0
A60: Part B - Land Cost Area | L60: Water Quality Easement Area:
E61: Limits of Construction Area (acres) = | F61: 2.6 | L61: Conservation Easement Area:
E63: Deductible Land Area (acres) = | F63: =M63 -> 0 | L63: Total Deductible Area: | M63: =SUM(M59:M61) -> 0 | N63: =SUM(N59:N61) -> 0
D65: Value per Acre | F65: Land Cost Area | H65: Land Cost Component (LCC)
C66: 80% x | D66: =H57 -> 4760448 | E66: x 0.05 x | F66: =IF(F61>F22,F61,F22)-F63 -> 2.6 | G66: = | H66: =0.8*D66*0.05*F66 -> 495086.592
F67: User Input
A69: Adjustment Factor for Relative Impervious Cover Percentage (accounts for lower or higher than City-wide average I.C.)
D71: I.C. Adjustment Factor = | E71: (1.5425 x | F71: =H26 -> 0.96 | G71: ) + 0.1933 = | H71: =IF(((1.5425*F71)+0.1933)<1,(1.5425*F71)+0.1933,1) -> 1
F73: LCC Sub Total ($) | G73: I.C. AF | H73: Adjusted LCC Total
F74: =H66 -> 495086.592 | G74: ="x "&ROUND(H71,4)&" = " -> x 1 = | H74: =F74*H71 -> 495086.592
A76: Total RSMP Participation Cost
D77: Adjusted CCC | F77: LCC | H77: Total
B78: Calculated | D78: =H48 -> 159190.074 | E78: + | F78: =H74 -> 495086.592 | G78: = | H78: =D78+F78 -> 654276.666
B80: Capped | H80: =D84*F22 -> 1100000
I81: =D86 -> USE CALCULATED RATE
D82: Check for extreme $/acre RSMP cost and use cap as necessary
D83: =(D78+F78)/F22 -> 261710.6664 | E83: per acre
D84: 440000 | E84: per acre
D86: =IF(D83>D84,"USE CAPPED RATE", "USE CALCULATED RATE") -> USE CALCULATED RATE

Sheet Proposed Commercial Combined (hidden)
L1: Watershed:
L2: Mapsco Grid #:
L3: TCAD PID_10:
L4: TCAD Area:
L5: Zoning:
L6: Drainage Reviewer:
L7: Case Manager:
A9: RSMP PARTICIPATION PAYMENT CALCULATOR (proposed)
C11: Project Name: | D11: Address/Case Name
C12: Case Number: | D12: RSMP Number, Case Number
A14: Input Site and Impervious Cover Area in Acres
A15: NOTE: The total and impervious cover areas entered must include any additional area beyond
A16: the property boundary that is within the limits of construction for the project.
F17: Area (acres) | H17: Impervious % | J17: Area (SF)
E18: Total Site Area = | F18: =Summary!C3 -> 2 | J18: =F18*43560 -> 87120
E20: Existing Impervious Cover Area = | F20: =Summary!C6 -> 0.6 | H20: =F20/F18 -> 0.3 | J20: =F20*43560 -> 26136
E22: Proposed Impervious Cover Area = | F22: =Summary!D6 -> 1.6 | H22: =F22/F18 -> 0.8 | J22: =F22*43560 -> 69696
E24: Increase in Impervious Cover Area = | F24: =F22-F20 -> 1 | H24: =F24/F18 -> 0.5 | J24: =F24*43560 -> 43560
A26: Construction Cost Component (CCC)
B27: Impervious Acres
B28: From | C28: To | D28: Cost per impervious acre | F28: Impervious Acres | H28: Sub-Total Cost
A29: A1 | B29: 0 | C29: 1 | D29: ='CCC Rate Compare Graphs'!#REF! ->  | F29: =IF($F$24>1,1,$F$24) -> 1 | G29: ac. | H29: =D29*F29 -> 
A30: A2 | B30: 1.01 | C30: 2 | D30: ='CCC Rate Compare Graphs'!#REF! ->  | F30: =IF($F$24>C29,IF(($F$24-C30)>0,C30-C29,IF($F$24>C29,($F$24-C29),0)),0) -> 0 | G30: ac.
A31: A3 | B31: =C30+0.01 -> 2.01 | C31: 5 | D31: ='CCC Rate Compare Graphs'!#REF! ->  | F31: 0 | G31: ac.
A32: A4 | B32: 5.01 | C32: 10 | D32: ='CCC Rate Compare Graphs'!#REF! ->  | F32: 0 | G32: ac.
A33: A5 | B33: 10.01 | C33: 20 | D33: ='CCC Rate Compare Graphs'!#REF! ->  | F33: 0 | G33: ac.
A34: A6 | B34: 20.01 | C34: 50 | D34: ='CCC Rate Compare Graphs'!#REF! ->  | F34: 0 | G34: ac.
A35: A7 | B35: 50.01 | C35: 100 | D35: ='CCC Rate Compare Graphs'!#REF! ->  | F35: 0 | G35: ac.
A36: A8 | B36: 100.01 | C36: > | D36: ='CCC Rate Compare Graphs'!#REF! ->  | F36: =IF($F$24>C35,IF(($F$24-1000000)>0,1000000-C35,IF($F$24>C35,($F$24-C35),0)),0) -> 0 | G36: ac.
D37: SUB TOTAL | F37: =SUM(F29:F36) -> 1 | G37: ac. | H37: =SUM(H29:H36) -> 
A39: Adjustment Factor (Accounts for increases in construction costs.)
D40: ENR 2018 | F40: ENR 2018 | J40: September 18 CCI value
C41: ENR AF = | D41: 11170.28 | E41: ÷ | F41: 11170.28 | G41: = | H41: =D41/F41 -> 1
F43: CCC Sub Total ($) | G43: ENR AF | H43: Adjusted CCC Total
F44: =H37 ->  | G44: ="x "&ROUND(D41/F41,4)&" = " -> x 1 = | H44: =F44*H41 -> 
A46: Land Cost Component (LCC)
A47: Part A - Land Cost per Acre
A48: Type values into boxes that indicate required user input.
E50: TCAD Parcel ID (10-digit) = | G50: Value = | H50: =250000*F53 -> 500000 | K50: Tax Year
D52: Certified Appraisal Land Valuation ($)* | F52: Certified Appraisal Land Area (Acre) | H52: Certified Appraisal Value per Acre
D53: =Summary!C3*Summary!C7 -> 500000 | E53: ÷ | F53: =F18 -> 2 | G53: = | H53: =D53/F53 -> 250000 | M53: Area
D54: User Input | F54: User Input | M54: SF | N54: Acres
A55: * Certified appraisal value if available, otherwise use the current appraisal district land values. | L55: Floodplain/Drainage Easement Area: | N55: =M55/43560 -> 0
A56: Part B - Land Cost Area | L56: Water Quality Easement Area:
E57: Limits of Construction Area (acres) = | L57: Conservation Easement Area:
E59: Deductible Land Area (acres) = | F59: =M59 -> 0 | L59: Total Deductible Area: | M59: =SUM(M55:M57) -> 0 | N59: =SUM(N55:N57) -> 0
D61: Value per Acre | F61: Land Cost Area | H61: Land Cost Component (LCC)
C62: 0.8 | D62: =C62*H53 -> 200000 | E62: x 0.05 x | F62: =IF(F57>F18,F57,F18)-F59 -> 2 | G62: = | H62: =D62*0.05*F62 -> 20000
F63: User Input
D64: ="NOTE: Land value of 80% of appraised value per acre used for calculation." -> NOTE: Land value of 80% of appraised value per acre used for calculation.
A66: Adjustment Factor for Relative Impervious Cover Percentage (accounts for lower or higher than City-wide average I.C.)
D68: I.C. Adjustment Factor = | E68: (1.5425 x | F68: =H22 -> 0.8 | G68: ) + 0.1933 = | H68: =(1.5425*F68)+0.1933 -> 1.4273
F70: LCC Sub Total ($) | G70: I.C. AF | H70: Adjusted LCC Total
F71: =H62 -> 20000 | G71: ="x "&ROUND(H68,4)&" = " -> x 1.4273 = | H71: =F71*H68 -> 28546
A73: Total RSMP Participation Cost
D74: Adjusted CCC | F74: LCC | H74: Total
D75: =H44 ->  | E75: + | F75: =H71 -> 28546 | G75: = | H75: =D75+F75 -> 

Sheet PropCommercial (MF-MU) Combined (hidden)
L1: Watershed:
L2: Mapsco Grid #:
L3: TCAD PID_10:
L4: TCAD Area:
L5: Zoning:
L6: Drainage Reviewer:
L7: Case Manager:
A9: RSMP PARTICIPATION PAYMENT CALCULATOR (proposed)
C11: Project Name: | D11: Address/Case Name
C12: Case Number: | D12: RSMP Number, Case Number
A14: Input Site and Impervious Cover Area in Acres
A15: NOTE: The total and impervious cover areas entered must include any additional area beyond
A16: the property boundary that is within the limits of construction for the project.
F17: Area (acres) | H17: Impervious % | J17: Area (SF)
E18: Total Site Area = | F18: =Summary!C17 -> 0.5 | J18: =F18*43560 -> 21780
E20: Existing Impervious Cover Area = | F20: =Summary!C20 -> 0.25 | H20: =F20/F18 -> 0.5 | J20: =F20*43560 -> 10890
E22: Proposed Impervious Cover Area = | F22: =Summary!D20 -> 0.45 | H22: =F22/F18 -> 0.9 | J22: =F22*43560 -> 19602
E24: Increase in Impervious Cover Area = | F24: =F22-F20 -> 0.2 | H24: =F24/F18 -> 0.4 | J24: =F24*43560 -> 8712
A26: Construction Cost Component (CCC)
B27: Impervious Acres
B28: From | C28: To | D28: Cost per impervious acre | F28: Impervious Acres | H28: Sub-Total Cost
A29: A1 | B29: 0 | C29: 1 | D29: ='CCC Rate Compare Graphs'!#REF! ->  | F29: =IF($F$24>1,1,$F$24) -> 0.2 | G29: ac. | H29: =D29*F29 -> 
A30: A2 | B30: 1.01 | C30: 2 | D30: ='CCC Rate Compare Graphs'!#REF! ->  | F30: =IF($F$24>C29,IF(($F$24-C30)>0,C30-C29,IF($F$24>C29,($F$24-C29),0)),0) -> 0 | G30: ac.
A31: A3 | B31: =C30+0.01 -> 2.01 | C31: 5 | D31: ='CCC Rate Compare Graphs'!#REF! ->  | F31: 0 | G31: ac.
A32: A4 | B32: 5.01 | C32: 10 | D32: ='CCC Rate Compare Graphs'!#REF! ->  | F32: 0 | G32: ac.
A33: A5 | B33: 10.01 | C33: 20 | D33: ='CCC Rate Compare Graphs'!#REF! ->  | F33: 0 | G33: ac.
A34: A6 | B34: 20.01 | C34: 50 | D34: ='CCC Rate Compare Graphs'!#REF! ->  | F34: 0 | G34: ac.
A35: A7 | B35: 50.01 | C35: 100 | D35: ='CCC Rate Compare Graphs'!#REF! ->  | F35: 0 | G35: ac.
A36: A8 | B36: 100.01 | C36: > | D36: ='CCC Rate Compare Graphs'!#REF! ->  | F36: =IF($F$24>C35,IF(($F$24-1000000)>0,1000000-C35,IF($F$24>C35,($F$24-C35),0)),0) -> 0 | G36: ac.
D37: SUB TOTAL | F37: =SUM(F29:F36) -> 0.2 | G37: ac. | H37: =SUM(H29:H36) -> 
A39: Adjustment Factor (Accounts for increases in construction costs.)
D40: ENR 2018 | F40: ENR 2018 | J40: September 18 CCI value
C41: ENR AF = | D41: 11170.28 | E41: ÷ | F41: 11170.28 | G41: = | H41: =D41/F41 -> 1
F43: CCC Sub Total ($) | G43: ENR AF | H43: Adjusted CCC Total
F44: =H37 ->  | G44: ="x "&ROUND(D41/F41,4)&" = " -> x 1 = | H44: =F44*H41 -> 
A46: Land Cost Component (LCC)
A47: Part A - Land Cost per Acre
A48: Type values into boxes that indicate required user input.
E50: TCAD Parcel ID (10-digit) = | G50: Value = | H50: =250000*F53 -> 125000 | K50: Tax Year
D52: Certified Appraisal Land Valuation ($)* | F52: Certified Appraisal Land Area (Acre) | H52: Certified Appraisal Value per Acre
D53: =Summary!C17*Summary!C21 -> 1000000 | E53: ÷ | F53: =F18 -> 0.5 | G53: = | H53: =D53/F53 -> 2000000 | M53: Area
D54: User Input | F54: User Input | M54: SF | N54: Acres
A55: * Certified appraisal value if available, otherwise use the current appraisal district land values. | L55: Floodplain/Drainage Easement Area: | N55: =M55/43560 -> 0
A56: Part B - Land Cost Area | L56: Water Quality Easement Area:
E57: Limits of Construction Area (acres) = | L57: Conservation Easement Area:
E59: Deductible Land Area (acres) = | F59: =M59 -> 0 | L59: Total Deductible Area: | M59: =SUM(M55:M57) -> 0 | N59: =SUM(N55:N57) -> 0
D61: Value per Acre | F61: Land Cost Area | H61: Land Cost Component (LCC)
C62: 0.8 | D62: =C62*H53 -> 1600000 | E62: x 0.05 x | F62: =IF(F57>F18,F57,F18)-F59 -> 0.5 | G62: = | H62: =D62*0.05*F62 -> 40000
F63: User Input
D64: ="NOTE: Land value of 80% of appraised value per acre used for calculation." -> NOTE: Land value of 80% of appraised value per acre used for calculation.
A66: Adjustment Factor for Relative Impervious Cover Percentage (accounts for lower or higher than City-wide average I.C.)
D68: I.C. Adjustment Factor = | E68: (1.5425 x | F68: =H22 -> 0.9 | G68: ) + 0.1933 = | H68: =(1.5425*F68)+0.1933 -> 1.58155
F70: LCC Sub Total ($) | G70: I.C. AF | H70: Adjusted LCC Total
F71: =H62 -> 40000 | G71: ="x "&ROUND(H68,4)&" = " -> x 1.5816 = | H71: =F71*H68 -> 63262
A73: Total RSMP Participation Cost
D74: Adjusted CCC | F74: LCC | H74: Total
D75: =H44 ->  | E75: + | F75: =H71 -> 63262 | G75: = | H75: =D75+F75 -> 

Sheet Proposed Lg Residential Combin (hidden)
L1: Watershed:
L2: Mapsco Grid #:
L3: TCAD PID_10:
L4: TCAD Area:
L5: Zoning:
L6: Drainage Reviewer:
L7: Case Manager:
A9: RSMP SINGLE FAMILY DEVELOPMENT CALCULATOR
C11: Project Name: | D11: Address/Case Name
C12: Case Nmber: | D12: RSMP Number, Case Number
A14: Input Site and Impervious Cover Area in Acres
A15: NOTE: The proposed impervious cover entered must be the maximum allowed by zoning
A16: or watershed ordinance.
F17: Area (acres) | H17: Impervious % | J17: Area (SF)
E18: Total Site Area = | F18: =Summary!C31 -> 60 | J18: =F18*43560 -> 2613600
E20: Existing Impervious Cover Area = | F20: =Summary!C34 -> 0 | H20: =F20/F18 -> 0 | J20: =F20*43560 -> 0
E22: Proposed Impervious Cover Area = | F22: =Summary!D34 -> 30 | H22: =F22/F18 -> 0.5 | J22: =F22*43560 -> 1306800
E24: Increase in Impervious Cover Area = | F24: =F22-F20 -> 30 | H24: =F24/F18 -> 0.5 | J24: =F24*43560 -> 1306800
A26: Construction Cost Component (CCC)
B27: Impervious Acres
B28: From | C28: To | D28: Cost per impervious acre | F28: Impervious Acres | H28: Sub-Total Cost
A29: A1 | B29: 0 | C29: 1 | D29: ='CCC Rate Compare Graphs'!#REF! ->  | F29: =IF($F$24>1,1,$F$24) -> 1 | G29: ac. | H29: =D29*F29 -> 
A30: A2 | B30: 1.01 | C30: 2 | D30: ='CCC Rate Compare Graphs'!#REF! ->  | F30: =IF($F$24>C29,IF(($F$24-C30)>0,C30-C29,IF($F$24>C29,($F$24-C29),0)),0) -> 1 | G30: ac.
A31: A3 | B31: =C30+0.01 -> 2.01 | C31: 5 | D31: ='CCC Rate Compare Graphs'!#REF! ->  | F31: 3 | G31: ac.
A32: A4 | B32: 5.01 | C32: 10 | D32: ='CCC Rate Compare Graphs'!#REF! ->  | F32: 5 | G32: ac.
A33: A5 | B33: 10.01 | C33: 20 | D33: ='CCC Rate Compare Graphs'!#REF! ->  | F33: 10 | G33: ac.
A34: A6 | B34: 20.01 | C34: 50 | D34: ='CCC Rate Compare Graphs'!#REF! ->  | F34: 10 | G34: ac.
A35: A7 | B35: 50.01 | C35: 100 | D35: ='CCC Rate Compare Graphs'!#REF! ->  | F35: 0 | G35: ac.
A36: A8 | B36: 100.01 | C36: > | D36: ='CCC Rate Compare Graphs'!#REF! ->  | F36: =IF($F$24>C35,IF(($F$24-1000000)>0,1000000-C35,IF($F$24>C35,($F$24-C35),0)),0) -> 0 | G36: ac.
D37: SUB TOTAL | F37: =SUM(F29:F36) -> 30 | G37: ac. | H37: =SUM(H29:H36) -> 
A39: Adjustment Factor (Accounts for increases in construction costs.)
D40: ENR 2018 | F40: ENR 2018 | J40: September 18 CCI value
C41: ENR AF = | D41: 11170.28 | E41: ÷ | F41: 11170.28 | G41: = | H41: =D41/F41 -> 1
F43: CCC Sub Total ($) | G43: ENR AF | H43: Adjusted CCC Total
F44: =H37 ->  | G44: ="x "&ROUND(D41/F41,4)&" = " -> x 1 = | H44: =F44*H41 -> 
A46: Land Cost Component (LCC)
A47: Part A - Land Cost per Acre
A48: Type values into boxes that indicate required user input.
D50: Certified Appraisal Land Valuation ($)* | F50: Certified Appraisal Land Area (Acre) | H50: Certified Appraisal Value per Acre
D51: =Summary!C35*Summary!C31 -> 9000000 | E51: ÷ | F51: =F18 -> 60 | G51: = | H51: =D51/F51 -> 150000 | K51: Tax Year | M51: Area
D52: User Input | F52: User Input | M52: SF | N52: Acres
A53: * Certified appraisal value if available, otherwise use the current appraisal district land values. | L53: Floodplain/Drainage Easement Area: | N53: =M53/43560 -> 0
A54: Part B - Land Cost Area | L54: Water Quality Easement Area:
E55: Limits of Construction Area (acres) = | L55: Conservation Easement Area:
E57: Deductible Land Area (acres) = | F57: =M57 -> 0 | L57: Total Deductible Area: | M57: =SUM(M53:M55) -> 0 | N57: =SUM(N53:N55) -> 0
D59: Value per Acre | F59: Land Cost Area | H59: Land Cost Component (LCC)
C60: 0.8 | D60: =C60*H51 -> 120000 | E60: x 0.05 x | F60: =IF(F55>F18,F55,F18)-F57 -> 60 | G60: = | H60: =D60*0.05*F60 -> 360000
F61: User Input
D62: ="NOTE: Land value of 80% of appraised value per acre used for calculation." -> NOTE: Land value of 80% of appraised value per acre used for calculation.
A64: Adjustment Factor for Relative Impervious Cover Percentage (accounts for lower or higher than City-wide average I.C.)
D66: I.C. Adjustment Factor = | E66: (1.5425 x | F66: =H22 -> 0.5 | G66: ) + 0.1933 = | H66: =(1.5425*F66)+0.1933 -> 0.96455
F68: LCC Sub Total ($) | G68: I.C. AF | H68: Adjusted LCC Total
F69: =H60 -> 360000 | G69: ="x "&ROUND(H66,4)&" = " -> x 0.9646 = | H69: =F69*H66 -> 347238
A71: Total RSMP Participation Cost
D72: Adjusted CCC | F72: LCC | H72: Total
D73: =H44 ->  | E73: + | F73: =H69 -> 347238 | G73: = | H73: =D73+F73 -> 
A75: Adjustment for Large Lot Single Family Residential Developments
E77: Average Lot Size (acres) = | F77: 3
D79: If lots are between 2 and 5 acres and impervious
D80: cover is <20%, then multiply by 50% | H80: =IF(AND(F77>1.99999,F77<5.00001),H73*0.5,"") -> 
D82: If lots are greater than 5 acres and impervious
D83: cover is <20%, then multiply by 25% | H83: =IF(F77>5,H73*0.25,"") -> 

Sheet Proposed Residential (hidden)
L1: Watershed:
L2: Mapsco Grid #:
L3: TCAD PID_10:
L4: TCAD Area:
L5: Zoning: | P5: yes | Q5: payment
L6: Drainage Reviewer: | P6: no | Q6: improvements
L7: Case Manager:
A9: RSMP SINGLE FAMILY DEVELOPMENT CALCULATOR (proposed)
C11: Project Name: | D11: Address/Case Name | I11: Single Family Residential
C12: Case Number: | D12: RSMP Number, Case Number | I12: Commercial/ Multi-family Residential/ Mixed-Use
A14: Input Site and Impervious Cover Area in Acres
A15: NOTE: The proposed impervious cover entered for subdivisions must be the maximum allowed by zoning or watershed ordinance.
F17: Area (acres) | H17: Impervious % | J17: Area (SF)
E18: Total Site Area = | F18: 3.39 | J18: =F18*43560 -> 147668.4
E20: Existing Impervious Cover Area = | F20: 0.266 | H20: =F20/F18 -> 0.0784660767 | J20: =F20*43560 -> 11586.96
E22: Proposed Impervious Cover Area = | F22: =0.45*F18 -> 1.5255 | H22: =F22/F18 -> 0.45 | J22: =F22*43560 -> 66450.78
E24: Increase in Impervious Cover Area = | F24: =F22-F20 -> 1.2595 | H24: =F24/F18 -> 0.3715339233 | J24: =F24*43560 -> 54863.82
A26: Construction Cost Component (CCC)
B27: Impervious Acres
B28: From | C28: To | D28: Cost per impervious acre | F28: Impervious Acres | H28: Sub-Total Cost
A29: A1 | B29: 0 | C29: 1 | D29: ='CCC Rate Compare Graphs'!S4 -> 103000 | F29: =IF($F$24>1,1,$F$24) -> 1 | G29: ac. | H29: =D29*F29 -> 103000
A30: A2 | B30: 1.01 | C30: 2 | D30: ='CCC Rate Compare Graphs'!S5 -> 70000 | F30: =IF($F$24>C29,IF(($F$24-C30)>0,C30-C29,IF($F$24>C29,($F$24-C29),0)),0) -> 0.2595 | G30: ac. | H30: 18165
A31: A3 | B31: =C30+0.01 -> 2.01 | C31: 5 | D31: ='CCC Rate Compare Graphs'!S6 -> 44000 | F31: 0 | G31: ac. | H31: 0
A32: A4 | B32: 5.01 | C32: 10 | D32: ='CCC Rate Compare Graphs'!S7 -> 29000 | F32: 0 | G32: ac. | H32: 0
A33: A5 | B33: 10.01 | C33: 20 | D33: ='CCC Rate Compare Graphs'!S8 -> 20000 | F33: 0 | G33: ac. | H33: 0
A34: A6 | B34: 20.01 | C34: 50 | D34: ='CCC Rate Compare Graphs'!S9 -> 12000 | F34: 0 | G34: ac. | H34: 0
A35: A7 | B35: 50.01 | C35: 100 | D35: ='CCC Rate Compare Graphs'!S10 -> 8000 | F35: 0 | G35: ac. | H35: 0
A36: A8 | B36: 100.01 | C36: > | D36: ='CCC Rate Compare Graphs'!S11 -> 4000 | F36: =IF($F$24>C35,IF(($F$24-1000000)>0,1000000-C35,IF($F$24>C35,($F$24-C35),0)),0) -> 0 | G36: ac. | H36: 0
D37: SUB TOTAL | F37: =SUM(F29:F36) -> 1.2595 | G37: ac. | H37: =SUM(H29:H36) -> 121165
A39: Adjustment Factor (accounts for changes in construction costs)
D40: ENR 2019 | F40: ENR 2018 | J40: September 18 CCI value
C41: ENR AF = | D41: 11326.1 | E41: ÷ | F41: 11170.28 | G41: = | H41: =D41/F41 -> 1.013949516
F43: CCC Sub Total ($) | G43: ENR AF | H43: Adjusted CCC Total
F44: =H37 -> 121165 | G44: ="x "&ROUND(D41/F41,4)&" = " -> x 1.0139 = | H44: =F44*H41 -> 122855.1931
A46: Land Cost Component (LCC)
A47: Part A - Land Cost per Acre
A48: Type values into boxes that indicate required user input.
E50: TCAD Parcel ID (10-digit) = | G50: Value = | H50: 2500000 | K50: Tax Year
D52: Certified Appraisal Land Valuation ($)* | F52: Certified Appraisal Land Area (Acre) | H52: Certified Appraisal Value per Acre
D53: =H50 -> 2500000 | E53: ÷ | F53: =F18 -> 3.39 | G53: = | H53: =D53/F53 -> 737463.1268 | M53: Area
D54: User Input | F54: User Input | M54: SF | N54: Acres
A55: * Certified appraisal value if available, otherwise use the current appraisal district land values. | L55: Floodplain/Drainage Easement Area: | N55: =M55/43560 -> 0
A56: Part B - Land Cost Area | L56: Water Quality Easement Area:
E57: Limits of Construction Area (acres) = | L57: Conservation Easement Area:
E59: Deductible Land Area (acres) = | F59: =M59 -> 0 | L59: Total Deductible Area: | M59: =SUM(M55:M57) -> 0 | N59: =SUM(N55:N57) -> 0
D61: Value per Acre | F61: Land Cost Area | H61: Land Cost Component (LCC)
C62: 0.8 | D62: =C62*H53 -> 589970.5015 | E62: x 0.05 x | F62: =IF(F57>F18,F57,F18)-F59 -> 3.39 | G62: = | H62: =D62*0.05*F62 -> 100000
F63: User Input
D64: ="NOTE: Land value of 80% of appraised value per acre used for calculation." -> NOTE: Land value of 80% of appraised value per acre used for calculation.
A66: Adjustment Factor for Relative Impervious Cover Percentage (accounts for lower or higher than City-wide average I.C.)
D68: I.C. Adjustment Factor = | E68: (1.5425 x | F68: =H22 -> 0.45 | G68: ) + 0.1933 = | H68: =IF(((1.5425*F68)+0.1933)<1,(1.5425*F68)+0.1933,1) -> 0.887425
F70: LCC Sub Total ($) | G70: I.C. AF | H70: Adjusted LCC Total
F71: =H62 -> 100000 | G71: ="x "&ROUND(H68,4)&" = " -> x 0.8874 = | H71: =F71*H68 -> 88742.5
A73: Total RSMP Participation Cost
D74: Adjusted CCC | F74: LCC | H74: Total
D75: =H44 -> 122855.1931 | E75: + | F75: =H71 -> 88742.5 | G75: = | H75: =D75+F75 -> 211597.6931
H77: =IF(D80>D81,D81*F18,H75) -> 211597.6931
I78: =D83 -> USE CALCULATED RATE
D79: Check for extreme $/acre RSMP cost and use cap as necessary
D80: =(D75+F75)/F18 -> 62418.19856 | E80: per acre
D81: 440000 | E81: per acre
D83: =IF(D80>D81,"USE CAPPED RATE", "USE CALCULATED RATE") -> USE CALCULATED RATE

Sheet Proposed Sm Residential Combin (hidden)
L1: Watershed:
L2: Mapsco Grid #:
L3: TCAD PID_10:
L4: TCAD Area:
L5: Zoning:
L6: Drainage Reviewer:
L7: Case Manager:
A9: RSMP SINGLE FAMILY DEVELOPMENT CALCULATOR
C11: Project Name: | D11: Address/Case Name
C12: Case Nmber: | D12: RSMP Number, Case Number
A14: Input Site and Impervious Cover Area in Acres
A15: NOTE: The proposed impervious cover entered must be the maximum allowed by zoning
A16: or watershed ordinance.
F17: Area (acres) | H17: Impervious % | J17: Area (SF)
E18: Total Site Area = | F18: =Summary!C45 -> 0.5 | J18: =F18*43560 -> 21780
E20: Existing Impervious Cover Area = | F20: =Summary!C48 -> 0 | H20: =F20/F18 -> 0 | J20: =F20*43560 -> 0
E22: Proposed Impervious Cover Area = | F22: =Summary!D48 -> 0.225 | H22: =F22/F18 -> 0.45 | J22: =F22*43560 -> 9801
E24: Increase in Impervious Cover Area = | F24: =F22-F20 -> 0.225 | H24: =F24/F18 -> 0.45 | J24: =F24*43560 -> 9801
A26: Construction Cost Component (CCC)
B27: Impervious Acres
B28: From | C28: To | D28: Cost per impervious acre | F28: Impervious Acres | H28: Sub-Total Cost
A29: A1 | B29: 0 | C29: 1 | D29: ='CCC Rate Compare Graphs'!#REF! ->  | F29: =IF($F$24>1,1,$F$24) -> 0.225 | G29: ac. | H29: =D29*F29 ->  | L29: 95000
A30: A2 | B30: 1.01 | C30: 2 | D30: ='CCC Rate Compare Graphs'!#REF! ->  | F30: =IF($F$24>C29,IF(($F$24-C30)>0,C30-C29,IF($F$24>C29,($F$24-C29),0)),0) -> 0 | G30: ac. | L30: 40000
A31: A3 | B31: =C30+0.01 -> 2.01 | C31: 5 | D31: ='CCC Rate Compare Graphs'!#REF! ->  | F31: 0 | G31: ac. | L31: 18000
A32: A4 | B32: 5.01 | C32: 10 | D32: ='CCC Rate Compare Graphs'!#REF! ->  | F32: 0 | G32: ac. | L32: 8000
A33: A5 | B33: 10.01 | C33: 20 | D33: ='CCC Rate Compare Graphs'!#REF! ->  | F33: 0 | G33: ac.
A34: A6 | B34: 20.01 | C34: 50 | D34: ='CCC Rate Compare Graphs'!#REF! ->  | F34: 0 | G34: ac.
A35: A7 | B35: 50.01 | C35: 100 | D35: ='CCC Rate Compare Graphs'!#REF! ->  | F35: 0 | G35: ac.
A36: A8 | B36: 100.01 | C36: > | D36: ='CCC Rate Compare Graphs'!#REF! ->  | F36: =IF($F$24>C35,IF(($F$24-1000000)>0,1000000-C35,IF($F$24>C35,($F$24-C35),0)),0) -> 0 | G36: ac.
D37: SUB TOTAL | F37: =SUM(F29:F36) -> 0.225 | G37: ac. | H37: =SUM(H29:H36) -> 
A39: Adjustment Factor (Accounts for increases in construction costs.)
D40: ENR 2018 | F40: ENR 2018 | J40: September 18 CCI value
C41: ENR AF = | D41: 11170.28 | E41: ÷ | F41: 11170.28 | G41: = | H41: =D41/F41 -> 1
F43: CCC Sub Total ($) | G43: ENR AF | H43: Adjusted CCC Total
F44: =H37 ->  | G44: ="x "&ROUND(D41/F41,4)&" = " -> x 1 = | H44: =F44*H41 -> 
A46: Land Cost Component (LCC)
A47: Part A - Land Cost per Acre
A48: Type values into boxes that indicate required user input.
D50: Certified Appraisal Land Valuation ($)* | F50: Certified Appraisal Land Area (Acre) | H50: Certified Appraisal Value per Acre
D51: =Summary!C45*Summary!C49 -> 250000 | E51: ÷ | F51: =F18 -> 0.5 | G51: = | H51: =D51/F51 -> 500000 | K51: Tax Year | M51: Area
D52: User Input | F52: User Input | M52: SF | N52: Acres
A53: * Certified appraisal value if available, otherwise use the current appraisal district land values. | L53: Floodplain/Drainage Easement Area: | N53: =M53/43560 -> 0
A54: Part B - Land Cost Area | L54: Water Quality Easement Area:
E55: Limits of Construction Area (acres) = | L55: Conservation Easement Area:
E57: Deductible Land Area (acres) = | F57: =M57 -> 0 | L57: Total Deductible Area: | M57: =SUM(M53:M55) -> 0 | N57: =SUM(N53:N55) -> 0
D59: Value per Acre | F59: Land Cost Area | H59: Land Cost Component (LCC)
C60: 0.8 | D60: =C60*H51 -> 400000 | E60: x 0.05 x | F60: =IF(F55>F18,F55,F18)-F57 -> 0.5 | G60: = | H60: =D60*0.05*F60 -> 10000
F61: User Input
D62: ="NOTE: Land value of 80% of appraised value per acre used for calculation." -> NOTE: Land value of 80% of appraised value per acre used for calculation.
A64: Adjustment Factor for Relative Impervious Cover Percentage (accounts for lower or higher than City-wide average I.C.)
D66: I.C. Adjustment Factor = | E66: (1.5425 x | F66: =H22 -> 0.45 | G66: ) + 0.1933 = | H66: =(1.5425*F66)+0.1933 -> 0.887425
F68: LCC Sub Total ($) | G68: I.C. AF | H68: Adjusted LCC Total
F69: =H60 -> 10000 | G69: ="x "&ROUND(H66,4)&" = " -> x 0.8874 = | H69: =F69*H66 -> 8874.25
A71: Total RSMP Participation Cost
D72: Adjusted CCC | F72: LCC | H72: Total
D73: =H44 ->  | E73: + | F73: =H69 -> 8874.25 | G73: = | H73: =D73+F73 -> 
A75: Adjustment for Large Lot Single Family Residential Developments
E77: Average Lot Size (acres) =
D79: If lots are between 2 and 5 acres and impervious
D80: cover is <20%, then multiply by 50% | H80: =IF(AND(F77>1.99999,F77<5.00001),H73*0.5,"") -> 
D82: If lots are greater than 5 acres and impervious
D83: cover is <20%, then multiply by 25% | H83: =IF(F77>5,H73*0.25,"") -> 

Sheet Proposed Sm Residential Com (2) (hidden)
L1: Watershed:
L2: Mapsco Grid #:
L3: TCAD PID_10:
L4: TCAD Area:
L5: Zoning:
L6: Drainage Reviewer:
L7: Case Manager:
A9: RSMP SINGLE FAMILY DEVELOPMENT CALCULATOR
C11: Project Name: | D11: Address/Case Name
C12: Case Nmber: | D12: RSMP Number, Case Number
A14: Input Site and Impervious Cover Area in Acres
A15: NOTE: The proposed impervious cover entered must be the maximum allowed by zoning
A16: or watershed ordinance.
F17: Area (acres) | H17: Impervious % | J17: Area (SF)
E18: Total Site Area = | F18: =Summary!C45 -> 0.5 | J18: =F18*43560 -> 21780
E20: Existing Impervious Cover Area = | F20: =Summary!C48 -> 0 | H20: =F20/F18 -> 0 | J20: =F20*43560 -> 0
E22: Proposed Impervious Cover Area = | F22: =Summary!D48 -> 0.225 | H22: =F22/F18 -> 0.45 | J22: =F22*43560 -> 9801
E24: Increase in Impervious Cover Area = | F24: =F22-F20 -> 0.225 | H24: =F24/F18 -> 0.45 | J24: =F24*43560 -> 9801
A26: Construction Cost Component (CCC)
B27: Impervious Acres
B28: From | C28: To | D28: Cost per impervious acre | F28: Impervious Acres | H28: Sub-Total Cost
A29: A1 | B29: 0 | C29: 1 | D29: ='CCC Rate Compare Graphs'!P4 -> 95000 | F29: =IF($F$24>1,1,$F$24) -> 0.225 | G29: ac. | H29: =D29*F29 -> 21375 | L29: 95000
A30: A2 | B30: 1.01 | C30: 2 | D30: ='CCC Rate Compare Graphs'!P5 -> 64000 | F30: =IF($F$24>C29,IF(($F$24-C30)>0,C30-C29,IF($F$24>C29,($F$24-C29),0)),0) -> 0 | G30: ac. | H30: 0 | L30: 40000
A31: A3 | B31: =C30+0.01 -> 2.01 | C31: 5 | D31: ='CCC Rate Compare Graphs'!P6 -> 40000 | F31: 0 | G31: ac. | H31: 0 | L31: 18000
A32: A4 | B32: 5.01 | C32: 10 | D32: ='CCC Rate Compare Graphs'!P7 -> 26000 | F32: 0 | G32: ac. | H32: 0 | L32: 8000
A33: A5 | B33: 10.01 | C33: 20 | D33: ='CCC Rate Compare Graphs'!P8 -> 18000 | F33: 0 | G33: ac. | H33: 0
A34: A6 | B34: 20.01 | C34: 50 | D34: ='CCC Rate Compare Graphs'!P9 -> 11000 | F34: 0 | G34: ac. | H34: 0
A35: A7 | B35: 50.01 | C35: 100 | D35: ='CCC Rate Compare Graphs'!P10 -> 8000 | F35: 0 | G35: ac. | H35: 0
A36: A8 | B36: 100.01 | C36: > | D36: ='CCC Rate Compare Graphs'!P11 -> 4000 | F36: =IF($F$24>C35,IF(($F$24-1000000)>0,1000000-C35,IF($F$24>C35,($F$24-C35),0)),0) -> 0 | G36: ac. | H36: 0
D37: SUB TOTAL | F37: =SUM(F29:F36) -> 0.225 | G37: ac. | H37: =SUM(H29:H36) -> 21375
A39: Adjustment Factor (Accounts for increases in construction costs.)
D40: ENR 2018 | F40: ENR 2018 | J40: September 18 CCI value
C41: ENR AF = | D41: 11170.28 | E41: ÷ | F41: 11170.28 | G41: = | H41: =D41/F41 -> 1
F43: CCC Sub Total ($) | G43: ENR AF | H43: Adjusted CCC Total
F44: =H37 -> 21375 | G44: ="x "&ROUND(D41/F41,4)&" = " -> x 1 = | H44: =F44*H41 -> 21375
A46: Land Cost Component (LCC)
A47: Part A - Land Cost per Acre
A48: Type values into boxes that indicate required user input.
D50: Certified Appraisal Land Valuation ($)* | F50: Certified Appraisal Land Area (Acre) | H50: Certified Appraisal Value per Acre
D51: =Summary!C45*Summary!C49 -> 250000 | E51: ÷ | F51: =F18 -> 0.5 | G51: = | H51: =D51/F51 -> 500000 | K51: Tax Year | M51: Area
D52: User Input | F52: User Input | M52: SF | N52: Acres
A53: * Certified appraisal value if available, otherwise use the current appraisal district land values. | L53: Floodplain/Drainage Easement Area: | N53: =M53/43560 -> 0
A54: Part B - Land Cost Area | L54: Water Quality Easement Area:
E55: Limits of Construction Area (acres) = | L55: Conservation Easement Area:
E57: Deductible Land Area (acres) = | F57: =M57 -> 0 | L57: Total Deductible Area: | M57: =SUM(M53:M55) -> 0 | N57: =SUM(N53:N55) -> 0
D59: Value per Acre | F59: Land Cost Area | H59: Land Cost Component (LCC)
C60: 0.8 | D60: =C60*H51 -> 400000 | E60: x 0.05 x | F60: =IF(F55>F18,F55,F18)-F57 -> 0.5 | G60: = | H60: =D60*0.05*F60 -> 10000
F61: User Input
D62: ="NOTE: Land value of 80% of appraised value per acre used for calculation." -> NOTE: Land value of 80% of appraised value per acre used for calculation.
A64: Adjustment Factor for Relative Impervious Cover Percentage (accounts for lower or higher than City-wide average I.C.)
D66: I.C. Adjustment Factor = | E66: (1.5425 x | F66: =H22 -> 0.45 | G66: ) + 0.1933 = | H66: =(1.5425*F66)+0.1933 -> 0.887425
F68: LCC Sub Total ($) | G68: I.C. AF | H68: Adjusted LCC Total
F69: =H60 -> 10000 | G69: ="x "&ROUND(H66,4)&" = " -> x 0.8874 = | H69: =F69*H66 -> 8874.25
A71: Total RSMP Participation Cost
D72: Adjusted CCC | F72: LCC | H72: Total
D73: =H44 -> 21375 | E73: + | F73: =H69 -> 8874.25 | G73: = | H73: =D73+F73 -> 30249.25
A75: Adjustment for Large Lot Single Family Residential Developments
E77: Average Lot Size (acres) =
D79: If lots are between 2 and 5 acres and impervious
D80: cover is <20%, then multiply by 50% | H80: =IF(AND(F77>1.99999,F77<5.00001),H73*0.5,"") -> 
D82: If lots are greater than 5 acres and impervious
D83: cover is <20%, then multiply by 25% | H83: =IF(F77>5,H73*0.25,"") -> 
